Cogmind - Beta 13 @@@ ROGUE MODE // 2024.05.07 @ 17:57:11 Player: luckinvolved Result: Destroyed by P-70 Sage with Tesla Rifle Performance ------------- Evolutions (6) 3000 Regions Visited (15) 3000 Robots Destroyed (37) 185 Value Destroyed (849) 849 Prototype IDs (17) 340 Alien Tech Used (0) 0 Bonus (300) 300 TOTAL SCORE: 7674 Bonus ------- Aligned with FarCom 300 Cogmind --------- Core Integrity 0/1150 Matter 200/300 Energy 100/100 System Corruption 16% Temperature Cool (0) Movement Core (50) Location -4/Armory Parts ------- > --- POWER (1) -------- (None) > --- PROPULSION (6) --- (None) > --- UTILITY (10) ----- (None) > --- WEAPON (2) ------- (None) > --- INVENTORY (5) ---- Heavy Deuterium Engine Improved Signal Interpreter Seismic Detector Improved Transmission Jammer Arc Projector Peak State ------------ > --- POWER ------------ Heavy Deuterium Engine > --- PROPULSION ------- Cooled VTOL Module Cooled VTOL Module Cooled VTOL Module Cooled VTOL Module Nuclear Pulse Array > --- UTILITY ---------- Power Amplifier Small Storage Unit Advanced Matter Compressor Structural Scanner Triangulator Enhanced Optical Array Cloak of Protection Improved Hacking Suite Advanced Hacking Suite Experimental System Shield > --- WEAPON ----------- Remote Datajack Spear > --- INVENTORY -------- Cooled VTOL Module Cooled VTOL Module Advanced Weight Redist. System Improved Signal Interpreter Improved Transmission Jammer Arc Projector Proton Missile Launcher [Rating: 100] Favorites ----------- Power Heavy Deuterium Engine Engine Heavy Deuterium Engine Power Core Micro Nuclear Core Reactor Light Particle Reactor Propulsion Cooled VTOL Module Treads Light Treads Wheel Compact Wheel Flight Unit Cooled VTOL Module Utility Small Storage Unit Device Structural Scanner Storage Small Storage Unit Processor Enhanced Optical Array Hackware Improved Hacking Suite Protection Light Armor Plating Weapon Light Assault Rifle Energy Gun Lightning Gun Energy Cannon Advanced Beam Cannon Ballistic Gun Light Assault Rifle Launcher Tesla Bomb Launcher Special Weapon Remote Datajack Slashing Weapon Ionic Axe Piercing Weapon Spear Build | -11 -10 -10 -10 -9 -8 -7 -7 -7 -6 -6 -6 -5 -5 -4 -4 ------- Run | Yrd Mat Min Exi Min Mat Fac Was Fac Fac Was Fac Fac Ext Fac Arm Slots Evolved 12 | . . . . . 4 2 . . 2 . . 2 . 2 . Power . | . . . . . . . . . . . . . . . . Propulsion 4 | . . . . . 2 2 . . . . . . . . . Utility 8 | . . . . . 2 . . . 2 . . 2 . 2 . Weapon . | . . . . . . . . . . . . . . . . Parts Attached 137 | 6 . . 2 2 13 27 2 8 20 2 8 9 12 10 16 Power 10 | 1 . . . . 1 1 . 1 1 . 1 2 1 . 1 Engine 6 | 1 . . . . 1 . . 1 . . 1 1 1 . . Core 3 | . . . . . . 1 . . 1 . . 1 . . . Reactor 1 | . . . . . . . . . . . . . . . 1 Propulsion 47 | 2 . . . 2 8 10 . . 2 . 5 1 4 6 7 Treads 8 | 2 . . . . 6 . . . . . . . . . . Leg . | . . . . . . . . . . . . . . . . Wheel 4 | . . . . 2 2 . . . . . . . . . . Hover . | . . . . . . . . . . . . . . . . Flight 35 | . . . . . . 10 . . 2 . 5 1 4 6 7 Utility 59 | 1 . . 2 . 1 10 2 7 13 2 2 6 6 4 3 Device 39 | . . . 1 . 1 6 2 5 8 1 . 5 6 1 3 Storage 4 | 1 . . 1 . . 1 . . . . . . . 1 . Processor 8 | . . . . . . 2 . . 2 . 2 . . 2 . Hackware 7 | . . . . . . . . 2 3 1 . 1 . . . Protection 1 | . . . . . . 1 . . . . . . . . . Artifact . | . . . . . . . . . . . . . . . . Weapon 21 | 2 . . . . 3 6 . . 4 . . . 1 . 5 Energy Gun 3 | . . . . . . 1 . . 1 . . . . . 1 Energy Cannon 1 | . . . . . 1 . . . . . . . . . . Ballistic Gun 7 | 2 . . . . 2 3 . . . . . . . . . Ballistic Cannon . | . . . . . . . . . . . . . . . . Launcher 2 | . . . . . . . . . 1 . . . . . 1 Special Weapon 5 | . . . . . . 1 . . 2 . . . 1 . 1 Impact Weapon . | . . . . . . . . . . . . . . . . Slashing Weapon 2 | . . . . . . . . . . . . . . . 2 Piercing Weapon 1 | . . . . . . 1 . . . . . . . . . Special Melee Weapon . | . . . . . . . . . . . . . . . . Unidentified Prototypes 12 | . . . 1 . 1 . . 1 1 1 . 3 . 2 2 Corrupted Parts 1 | . . . . . . 1 . . . . . . . . . System Corruption 4 | . . . . . . 4 . . . . . . . . . Parts Lost 21 | . . . . . . 4 . . 2 . 1 . . 1 13 Power . | . . . . . . . . . . . . . . . . Propulsion 12 | . . . . . . 3 . . 1 . 1 . . . 7 Utility 7 | . . . . . . . . . 1 . . . . 1 5 Weapon 2 | . . . . . . 1 . . . . . . . . 1 Highest Loss Streak 13 | . . . . . . 2 . . 1 . 1 . . 1 13 To Critical Strikes . | . . . . . . . . . . . . . . . . Average Slot Usage (%) 90 | . 85 85 85 85 81 88 100 100 97 100 100 96 91 88 81 Engine 6 | . 14 14 14 14 9 3 . 1 . . 4 5 4 5 3 Core 1 | . . . . . . 3 7 5 5 6 1 . . . . Treads 9 | . 28 28 28 26 22 . . . . . . . . . . Wheel 1 | . . . . 1 13 . . . . . . . . . . Flight 23 | . . . . . . 37 46 46 37 40 40 32 28 26 23 Device 7 | . . . . . 9 13 15 6 6 6 1 4 11 20 20 Storage 8 | . 14 14 14 14 9 7 7 7 6 6 6 5 5 5 4 Processor 7 | . . . . . . 6 7 7 11 13 18 17 9 7 9 Hackware 6 | . . . . . . . . 7 12 13 13 16 17 12 9 Ballistic Gun 9 | . 28 28 28 28 12 6 . . . . . . . . . Special Weapon 3 | . . . . . . . 7 7 5 6 6 5 5 5 3 Piercing Weapon 3 | . . . . . . . 7 7 6 6 6 5 5 5 2 Naked Turns 20 | . . . . . . . . . . . . . . . 20 Heaviest Build 55 | 12 12 12 47 47 55 23 17 24 24 17 21 22 31 32 37 Greatest Support 80 | 40 40 40 40 40 80 26 26 26 31 29 40 33 35 41 50 Greatest Overweight (x) 8 | . . . 1 2 1 5 . . . . . . 1 . 8 Average Overweight (x) . | . . . . 1 . . . . . . . . . . . Largest Inventory Capacity 20 | 8 8 8 20 20 20 20 8 8 8 8 8 8 8 8 8 Average Capacity 10 | 7 8 8 13 20 20 8 8 8 8 8 8 8 8 8 7 Most Carried 20 | 4 6 7 9 15 20 20 8 8 8 8 8 8 8 8 8 Average Carried 8 | 2 4 6 8 14 14 7 7 7 7 8 7 6 7 6 7 Final Capacity 20 | 8 8 8 20 20 20 8 8 8 8 8 8 8 8 8 5 Final Carried 20 | 4 6 7 9 15 20 8 8 8 8 8 7 8 8 7 5 Class Distribution -------------------- 35% | Mutant 23% | Hacker-Scout 15% | Hacker-Ninja 8% | Scavenger-Scout 8% | Scavenger-Sprinter Dominant Class ---------------- Mutant | -10/Materials Mutant | -10/Mines Mutant | -10/Exiles Mutant | -9/Mines Mutant | -8/Materials Scavenger-Sprinter | -7/Factory Scavenger-Sprinter | -7/Waste Scavenger-Scout | -7/Factory Scavenger-Scout | -6/Factory Scavenger-Scout | -6/Waste Hacker-Scout | -6/Factory Hacker-Scout | -5/Factory Hacker-Scout | -5/Extension Hacker-Ninja | -4/Factory Hacker-Ninja | -4/Armory Resources | -11 -10 -10 -10 -9 -8 -7 -7 -7 -6 -6 -6 -5 -5 -4 -4 ----------- Run | Yrd Mat Min Exi Min Mat Fac Was Fac Fac Was Fac Fac Ext Fac Arm Matter Collected 1797 | 197 . 71 . 30 216 281 . 204 95 . 100 . 150 300 153 Remotely . | . . . . . . . . . . . . . . . . Salvage Created 1870 | . . 95 . 58 317 304 . 150 237 . 100 . 150 306 153 Parts 101 | . . 4 . 4 22 23 . 10 11 . 4 . 6 8 9 Haulers Intercepted 9 | . . . . . 1 . . 2 2 . 1 . . 3 . Recyclers Shooed 2 | . . . . . 1 1 . . . . . . . . . Parts Field Recycled . | . . . . . . . . . . . . . . . . Retrieved Matter . | . . . . . . . . . . . . . . . . Parts Self-Destructed . | . . . . . . . . . . . . . . . . Prevented . | . . . . . . . . . . . . . . . . Kills | -11 -10 -10 -10 -9 -8 -7 -7 -7 -6 -6 -6 -5 -5 -4 -4 ------- Run | Yrd Mat Min Exi Min Mat Fac Was Fac Fac Was Fac Fac Ext Fac Arm Combat Hostiles Destroyed 19 | . . 1 . 4 7 4 . . . . . . . . 3 Melee 3 | . . . . . . . . . . . . . . . 3 Guns 14 | . . 1 . 4 5 4 . . . . . . . . . Cannons 2 | . . . . . 2 . . . . . . . . . . Classes Destroyed 10 | . . 1 . 1 3 3 . 1 . . . . . . 1 Builder 4 | . . . . . . 2 . 1 1 . . . . . . Hauler 9 | . . . . . 1 . . 2 2 . 1 . . 3 . Recycler 3 | . . . . . . 2 . . . . . . 1 . . Operator 2 | . . . . . . . . 1 1 . . . . . . Swarmer 10 | . . . . 4 3 3 . . . . . . . . . Cutter 1 | . . . . . . . . . . . . . . . 1 Grunt 2 | . . 1 . . 1 . . . . . . . . . . Brawler 1 | . . . . . 1 . . . . . . . . . . Sentry 2 | . . . . . 2 . . . . . . . . . . Programmer 3 | . . . . . . 1 . . . . . . . . 2 Best Kill Streak 6 | . . 1 . 4 3 6 . 1 1 . 1 . 1 2 2 Combat Bots Only 4 | . . 1 . 4 3 3 . . . . . . . . 2 Max Kills in Single Turn 2 | . . 1 . 2 1 1 . 1 1 . 1 . 1 1 1 Gunslinging . | . . . . . . . . . . . . . . . . Exploded . | . . . . . . . . . . . . . . . . Melee 1 | . . . . . . . . . . . . . . . 1 Uniques/NPCs Destroyed . | . . . . . . . . . . . . . . . . Combat | -11 -10 -10 -10 -9 -8 -7 -7 -7 -6 -6 -6 -5 -5 -4 -4 -------- Run | Yrd Mat Min Exi Min Mat Fac Was Fac Fac Was Fac Fac Ext Fac Arm Hostile Shots Fired 234 | . 1 10 . 20 35 36 . . 10 . 8 . 6 4 104 Missed 68 | . . 3 . 6 11 12 . . 8 . 3 . 3 1 21 Damage Taken 3106 | . 8 92 . 102 320 363 . . 77 . 79 . 75 110 1880 Core 1275 | . 8 16 . 6 . 58 . . 23 . . . . . 1164 Absorbed by Shields . | . . . . . . . . . . . . . . . . Regen/Repaired (Parts) 60 | . . . . . . . . . . . . . . 60 . Core Remaining (%) 96 | 100 . . . 88 100 . . 91 . . 97 . 100 . . Volleys Fired 75 | . . 4 . 5 20 20 . 7 12 . 1 . 1 3 2 Largest 2 | . . 2 . 2 2 2 . 1 1 . 1 . 1 1 1 Hottest 91 | . . 40 . 40 91 78 . 5 55 . 5 . 5 5 55 Shots Fired 115 | . . 8 . 10 40 31 . 7 12 . 1 . 1 3 2 Gun 77 | . . 8 . 10 22 29 . . 6 . . . . . 2 Cannon 18 | . . . . . 18 . . . . . . . . . . Launcher . | . . . . . . . . . . . . . . . . Special 20 | . . . . . . 2 . 7 6 . 1 . 1 3 . Kinetic 58 | . . 8 . 10 22 18 . . . . . . . . . Thermal 18 | . . . . . 18 . . . . . . . . . . Explosive . | . . . . . . . . . . . . . . . . Electromagnetic 19 | . . . . . . 11 . . 6 . . . . . 2 Robot Hit Streak 11 | . . 4 . 1 4 6 . 6 8 . 5 . 6 9 11 Robot Miss Streak 4 | . . 1 . 4 3 2 . 2 1 . . . . . . Penetration Max . | . . . . . . . . . . . . . . . . Secondary Targets 1 | . . . . . . 1 . . . . . . . . . Max Gunslinging Chain 1 | . . . . . . 1 . . . . . . . . . Shots Hit Robots 107 | . . 5 . 3 21 23 . 15 15 . 2 . 2 11 10 Core Hits 47 | . . 3 . 6 11 10 . 4 5 . 1 . 1 3 3 Critical Kills . | . . . . . . . . . . . . . . . . Critical Parts Destroyed 1 | . . . . . . 1 . . . . . . . . . Critical Strikes 5 | . . . . . . 1 . 1 1 . . . . . 2 Destroy 1 | . . . . . . 1 . . . . . . . . . Sever 2 | . . . . . . . . . . . . . . . 2 Impale 2 | . . . . . . . . 1 1 . . . . . . Melee Attacks 128 | . . . . . . 6 . 19 28 . 10 1 1 10 53 Impact . | . . . . . . . . . . . . . . . . Slashing 35 | . . . . . . . . . . . . . . . 35 Piercing 93 | . . . . . . 6 . 19 28 . 10 1 1 10 18 Sneak Attacks 14 | . . . . . . 2 . 3 3 . 1 . 1 3 1 Combat Hostiles 1 | . . . . . . . . . . . . . . . 1 Follow-up Attacks . | . . . . . . . . . . . . . . . . Damage Inflicted 2827 | . . 50 . 66 375 514 . 546 289 . 56 . 81 407 443 Guns 781 | . . 50 . 66 190 370 . . 86 . . . . . 19 Cannons 185 | . . . . . 185 . . . . . . . . . . Explosions . | . . . . . . . . . . . . . . . . Melee 1861 | . . . . . . 144 . 546 203 . 56 . 81 407 424 Ramming . | . . . . . . . . . . . . . . . . Kinetic 532 | . . 50 . 66 190 226 . . . . . . . . . Thermal 185 | . . . . . 185 . . . . . . . . . . Explosive . | . . . . . . . . . . . . . . . . Electromagnetic 249 | . . . . . . 144 . . 86 . . . . . 19 Impact . | . . . . . . . . . . . . . . . . Slashing 424 | . . . . . . . . . . . . . . . 424 Piercing 1437 | . . . . . . 144 . 546 203 . 56 . 81 407 . Highest Corruption 16 | . . . . . . 5 8 8 2 2 2 . 4 . 16 Average Corruption 3 | . . . . . . 3 4 8 1 2 2 . 4 . 13 Corruption Purged 5 | . . . . . . 5 . . . . . . . . . Corruption Blocked 8 | . . . . . . . . . 8 . . . . . . Effects 34 | . . . . . . 10 1 13 4 . 2 . 2 . 2 Message Errors 12 | . . . . . . 5 1 3 1 . . . 1 . 1 Matter Fused 6 | . . . . . . 2 . 2 1 . . . 1 . . Heat Flow Errors 1 | . . . . . . . . 1 . . . . . . . Energy Discharges 4 | . . . . . . 1 . 3 . . . . . . . Parts Fused 1 | . . . . . . . . 1 . . . . . . . Data Loss (minor) 7 | . . . . . . 1 . 2 1 . 2 . . . 1 Data Loss (major) 1 | . . . . . . 1 . . . . . . . . . Alerts 2 | . . . . . . . . 1 1 . . . . . . Overload Shots . | . . . . . . . . . . . . . . . . Overflow Damage 96 | . . . . . . 56 . 8 32 . . . . . . Projectiles . | . . . . . . . . . . . . . . . . Explosions . | . . . . . . . . . . . . . . . . Melee 96 | . . . . . . 56 . 8 32 . . . . . . Knockbacks . | . . . . . . . . . . . . . . . . Impact . | . . . . . . . . . . . . . . . . Kinetic . | . . . . . . . . . . . . . . . . Secondary . | . . . . . . . . . . . . . . . . Self-Inflicted Damage . | . . . . . . . . . . . . . . . . Shots . | . . . . . . . . . . . . . . . . Rammed . | . . . . . . . . . . . . . . . . Targets Rammed . | . . . . . . . . . . . . . . . . Kicked . | . . . . . . . . . . . . . . . . Crushed . | . . . . . . . . . . . . . . . . Highest Temperature 593 | . . 12 . . 111 116 4 207 435 22 229 4 162 1 593 Average Temperature 75 | . . 9 . . 42 50 4 98 49 9 61 2 162 1 210 Received Heat Transfer 352 | . . 57 . . 126 . . . . . . . 12 18 139 Effects 8 | . . . . . . . . . . . . . . . 8 Shutdowns 1 | . . . . . . . . . . . . . . . 1 Energy Bleed 1 | . . . . . . . . . . . . . . . 1 Interference 1 | . . . . . . . . . . . . . . . 1 Matter Decay 4 | . . . . . . . . . . . . . . . 4 Short Circuit 1 | . . . . . . . . . . . . . . . 1 Siege Activations . | . . . . . . . . . . . . . . . . Robots Corrupted . | . . . . . . . . . . . . . . . . Combat Hostiles . | . . . . . . . . . . . . . . . . Parts Fried 3 | . . . . . . . . . 3 . . . . . . Impact Corruptions . | . . . . . . . . . . . . . . . . Robots Melted . | . . . . . . . . . . . . . . . . Combat Hostiles . | . . . . . . . . . . . . . . . . Parts Melted . | . . . . . . . . . . . . . . . . Heat Transferred 333 | . . . . . 333 . . . . . . . . . . Parts Sabotaged . | . . . . . . . . . . . . . . . . Parts Stolen . | . . . . . . . . . . . . . . . . Parts Stripped . | . . . . . . . . . . . . . . . . Power Chain Reactions . | . . . . . . . . . . . . . . . . Alert | -11 -10 -10 -10 -9 -8 -7 -7 -7 -6 -6 -6 -5 -5 -4 -4 ------- Run | Yrd Mat Min Exi Min Mat Fac Was Fac Fac Was Fac Fac Ext Fac Arm Peak Influence 399 | . . 25 . 90 158 205 66 237 209 49 196 53 45 103 399 Initial 71 | . . . . . 5 71 36 46 28 4 34 21 25 21 14 Average 72 | . . 1 . 70 80 98 48 130 88 24 58 43 35 51 152 Maximum Alert Level 1 | . . . . . . 1 . 1 1 . . . . . 1 Low Security (%) 95 | 100 100 100 . 100 100 96 100 87 85 100 100 100 100 100 77 Level 1 4 | . . . . . . 3 . 12 14 . . . . . 22 Level 2 . | . . . . . . . . . . . . . . . . Level 3 . | . . . . . . . . . . . . . . . . Level 4 . | . . . . . . . . . . . . . . . . Level 5 . | . . . . . . . . . . . . . . . . High Security . | . . . . . . . . . . . . . . . . Max Security . | . . . . . . . . . . . . . . . . Squads Dispatched 28 | . . . . . 2 3 . 2 7 . 3 2 . 4 5 Investigation 16 | . . . . . 1 1 . 2 3 . 2 2 . 3 2 Extermination 6 | . . . . . . 2 . . 1 . 1 . . . 2 Reinforcement 6 | . . . . . 1 . . . 3 . . . . 1 1 Assault . | . . . . . . . . . . . . . . . . Garrison . | . . . . . . . . . . . . . . . . Intercept . | . . . . . . . . . . . . . . . . Searches Triggered . | . . . . . . . . . . . . . . . . Construction Impeded 1 | . . . . . 1 . . . . . . . . . . Haulers Reinforced 1 | . . . . . . . . . . . . . . 1 . Active Scanning Responses . | . . . . . . . . . . . . . . . . Cargo Convoy Interrupts . | . . . . . . . . . . . . . . . . Stealth | -11 -10 -10 -10 -9 -8 -7 -7 -7 -6 -6 -6 -5 -5 -4 -4 --------- Run | Yrd Mat Min Exi Min Mat Fac Was Fac Fac Was Fac Fac Ext Fac Arm Distress Signals 5 | . 1 . . . 1 2 . . 1 . . . . . . Communications Jammed . | . . . . . . . . . . . . . . . . Distress Signals . | . . . . . . . . . . . . . . . . Times Spotted 124 | . 2 2 . 6 13 15 4 6 15 5 9 2 2 6 37 Peak Tracking Total 16 | . 4 2 . 4 4 5 4 3 5 5 5 1 2 6 16 Tactical Retreats 14 | . . . . . 1 1 . 1 4 . 1 . . . 6 Traps | -11 -10 -10 -10 -9 -8 -7 -7 -7 -6 -6 -6 -5 -5 -4 -4 ------- Run | Yrd Mat Min Exi Min Mat Fac Was Fac Fac Was Fac Fac Ext Fac Arm Traps Triggered 13 | . . . . . 1 1 . . 4 . . . 2 4 1 Indirectly . | . . . . . . . . . . . . . . . . Trap Hack Attempts . | . . . . . . . . . . . . . . . . Triggered . | . . . . . . . . . . . . . . . . Disarmed . | . . . . . . . . . . . . . . . . Reprogrammed . | . . . . . . . . . . . . . . . . Reused . | . . . . . . . . . . . . . . . . Traps Extracted . | . . . . . . . . . . . . . . . . Installed . | . . . . . . . . . . . . . . . . Triggered . | . . . . . . . . . . . . . . . . Machines | -11 -10 -10 -10 -9 -8 -7 -7 -7 -6 -6 -6 -5 -5 -4 -4 ---------- Run | Yrd Mat Min Exi Min Mat Fac Was Fac Fac Was Fac Fac Ext Fac Arm Machines Disabled 7 | . . . . . . . . 1 1 . . . . . 5 Max in Single Turn 1 | . . . . . . . . 1 1 . . . . . 1 Garrison Access 4 | . . . . . . . . . 2 . 1 . . 1 . Machines Repaired . | . . . . . . . . . . . . . . . . Machines Dismantled . | . . . . . . . . . . . . . . . . Machines Sabotaged . | . . . . . . . . . . . . . . . . Overloaded Fab Kills . | . . . . . . . . . . . . . . . . Hacking | -11 -10 -10 -10 -9 -8 -7 -7 -7 -6 -6 -6 -5 -5 -4 -4 --------- Run | Yrd Mat Min Exi Min Mat Fac Was Fac Fac Was Fac Fac Ext Fac Arm Machines Accessed 51 | . . . 1 . 1 1 . 8 15 . 9 3 2 8 3 Terminals 37 | . . . . . 1 1 . 8 11 . 5 2 2 5 2 Fabricators 7 | . . . . . . . . . 2 . 2 1 . 1 1 Repair Stations 1 | . . . . . . . . . . . . . . 1 . Recycling Units . | . . . . . . . . . . . . . . . . Scanalyzers . | . . . . . . . . . . . . . . . . Garrison Access 5 | . . . . . . . . . 2 . 2 . . 1 . Total Hacks 175 | . . . 17 . 1 4 . 23 52 . 34 9 4 28 3 Successful 90 | . . . 17 . 1 1 . 8 22 . 17 5 2 15 2 Failed 85 | . . . . . . 3 . 15 30 . 17 4 2 13 1 Catastrophic 18 | . . . . . . 1 . 4 8 . 3 1 . . 1 Database Lockouts . | . . . . . . . . . . . . . . . . Manual 103 | . . . 1 . 1 4 . 24 34 . 23 4 . 11 1 Terminals 123 | . . . . . 1 4 . 23 40 . 25 5 4 19 2 Fabricators 20 | . . . . . . . . . 6 . 6 4 . 3 1 Repair Stations 4 | . . . . . . . . . . . . . . 4 . Recycling Units . | . . . . . . . . . . . . . . . . Scanalyzers . | . . . . . . . . . . . . . . . . Garrison Access 11 | . . . . . . . . . 6 . 3 . . 2 . Terminal Hacks 48 | . . . 17 . . . . 3 10 . 8 2 2 5 1 Record 18 | . . . 17 . . . . . . . 1 . . . . Part Schematic 1 | . . . . . . . . . 1 . . . . . . Prototype ID Bank 2 | . . . . . . . . . 2 . . . . . . Open Door 4 | . . . . . . . . . . . . 1 2 . 1 Open DSF 1 | . . . . . . . . . . . 1 . . . . Level Access Points 3 | . . . . . . . . 1 1 . 1 . . . . Branch Access Points 3 | . . . . . . . . 1 1 . 1 . . . . Terminal Index 5 | . . . . . . . . 1 1 . 1 1 . 1 . Fabricator Index 2 | . . . . . . . . . 1 . . . . 1 . Garrison Index 2 | . . . . . . . . . 1 . 1 . . . . Alert Level 2 | . . . . . . . . . 1 . . . . 1 . Surveillance Status 1 | . . . . . . . . . . . . . . 1 . Hauler Manifests 3 | . . . . . . . . . 1 . 2 . . . . Zone Layout 1 | . . . . . . . . . . . . . . 1 . Fabricator Hacks 13 | . . . . . . . . . 4 . 4 2 . 2 1 Load Schematic 6 | . . . . . . . . . 2 . 2 1 . 1 . Build 7 | . . . . . . . . . 2 . 2 1 . 1 1 Repair Station Hacks 4 | . . . . . . . . . . . . . . 4 . Scan Component 2 | . . . . . . . . . . . . . . 2 . Repair 2 | . . . . . . . . . . . . . . 2 . Recycling Unit Hacks . | . . . . . . . . . . . . . . . . Scanalyzer . | . . . . . . . . . . . . . . . . Garrison Access Hacks 4 | . . . . . . . . . 2 . 1 . . 1 . Seal Access 4 | . . . . . . . . . 2 . 1 . . 1 . Unauthorized Hacks 21 | . . . . . 1 1 . 5 6 . 4 1 . 3 . Terminals 21 | . . . . . 1 1 . 5 6 . 4 1 . 3 . Botnet 21 | . . . . . 1 1 . 5 6 . 4 1 . 3 . Fabricators . | . . . . . . . . . . . . . . . . Repair Stations . | . . . . . . . . . . . . . . . . Recycling Units . | . . . . . . . . . . . . . . . . Scanalyzers . | . . . . . . . . . . . . . . . . Garrison Access . | . . . . . . . . . . . . . . . . Data Cores Recovered . | . . . . . . . . . . . . . . . . Used . | . . . . . . . . . . . . . . . . Hacking Detections 37 | . . . . . . 1 . 8 11 . 7 2 . 7 1 Full Trace Events 14 | . . . . . . 1 . 2 3 . 2 2 . 3 1 Feedback Events 2 | . . . . . . 1 . . . . . . . 1 . Corruption 1 | . . . . . . 1 . . . . . . . . . Hackware Fried 1 | . . . . . . . . . . . . . . 1 . Feedback Blocked . | . . . . . . . . . . . . . . . . Robot Schematics Acquired . | . . . . . . . . . . . . . . . . Robots Built . | . . . . . . . . . . . . . . . . Authchips . | . . . . . . . . . . . . . . . . Time . | . . . . . . . . . . . . . . . . Total Robot Build Rating . | . . . . . . . . . . . . . . . . Part Schematics Acquired 1 | . . . . . . . . . 1 . . . . . . Parts Built 8 | . . . . . . . . . 2 . 2 1 . 1 2 Authchips . | . . . . . . . . . . . . . . . . Time 461 | . . . . . . . . . 111 . 134 44 . 44 128 Total Part Build Rating 40 | . . . . . . . . . 8 . 8 4 . 4 16 Parts Repaired 2 | . . . . . . . . . . . . . . 2 . Time 70 | . . . . . . . . . . . . . . 70 . Parts Recycled . | . . . . . . . . . . . . . . . . Recycled Matter . | . . . . . . . . . . . . . . . . Retrieved Matter . | . . . . . . . . . . . . . . . . Retrieved Components . | . . . . . . . . . . . . . . . . Parts Scanalyzed . | . . . . . . . . . . . . . . . . Part Schematics Acquired . | . . . . . . . . . . . . . . . . Parts Damaged . | . . . . . . . . . . . . . . . . Bothacking | -11 -10 -10 -10 -9 -8 -7 -7 -7 -6 -6 -6 -5 -5 -4 -4 ------------ Run | Yrd Mat Min Exi Min Mat Fac Was Fac Fac Was Fac Fac Ext Fac Arm Used RIF Installer . | . . . . . . . . . . . . . . . . Robots Hacked 15 | . . . . . . 2 . 4 4 . 1 . 1 3 . Non-combat 15 | . . . . . . 2 . 4 4 . 1 . 1 3 . Combat . | . . . . . . . . . . . . . . . . Robot Hacks Applied 16 | . . . . . . 2 . 4 5 . 1 . 1 3 . no_distress 13 | . . . . . . 2 . 3 3 . 1 . 1 3 . find_dsf 1 | . . . . . . . . . 1 . . . . . . check_alert 2 | . . . . . . . . 1 1 . . . . . . Relay Couplers Released . | . . . . . . . . . . . . . . . . Fabnet Peak Effective % . | . . . . . . . . . . . . . . . . Robots Rewired . | . . . . . . . . . . . . . . . . Allies Hacked . | . . . . . . . . . . . . . . . . Hacks Repelled . | . . . . . . . . . . . . . . . . Allies | -11 -10 -10 -10 -9 -8 -7 -7 -7 -6 -6 -6 -5 -5 -4 -4 -------- Run | Yrd Mat Min Exi Min Mat Fac Was Fac Fac Was Fac Fac Ext Fac Arm Total Allies 1 | . . . . . . . . . . . . . 1 . . Largest Group 1 | . . . . . . . . . . . . . 1 . . Highest-Rated Group 39 | . . . . . . . . . . . . . 39 . . Highest-Rated Ally 39 | . . . . . . . . . . . . . 39 . . Total Orders . | . . . . . . . . . . . . . . . . Ally Attacks . | . . . . . . . . . . . . . . . . Total Damage . | . . . . . . . . . . . . . . . . Kills . | . . . . . . . . . . . . . . . . Allies Corrupted . | . . . . . . . . . . . . . . . . Allies Melted . | . . . . . . . . . . . . . . . . Intel | -11 -10 -10 -10 -9 -8 -7 -7 -7 -6 -6 -6 -5 -5 -4 -4 ------- Run | Yrd Mat Min Exi Min Mat Fac Was Fac Fac Was Fac Fac Ext Fac Arm Robot Analysis Total . | . . . . . . . . . . . . . . . . Derelict Logs Recovered 1 | . . 1 . . . . . . . . . . . . . Drone Launches . | . . . . . . . . . . . . . . . . Drone Recoveries . | . . . . . . . . . . . . . . . . Exploration | -11 -10 -10 -10 -9 -8 -7 -7 -7 -6 -6 -6 -5 -5 -4 -4 ------------- Run | Yrd Mat Min Exi Min Mat Fac Was Fac Fac Was Fac Fac Ext Fac Arm Turns Passed 6844 | 82 79 652 588 504 507 620 25 410 817 26 1003 201 252 538 540 Spaces Moved 9293 | 45 49 224 310 213 256 1398 81 1277 1622 88 1118 432 671 667 842 Core 28 | 2 . . . . . 1 . . . . . . . . 25 Treads 933 | 43 49 224 310 190 117 . . . . . . . . . . Legs . | . . . . . . . . . . . . . . . . Wheels 162 | . . . . 23 139 . . . . . . . . . . Hover . | . . . . . . . . . . . . . . . . Flight 8170 | . . . . . . 1397 81 1277 1622 88 1118 432 671 667 817 Fastest Speed 5 | 50 160 160 160 115 115 21 21 21 18 21 6 21 5 5 5 Average Speed 42 | 155 160 160 188 226 158 26 24 23 23 22 22 21 27 23 22 Slowest Speed 450 | 160 160 160 240 240 240 300 25 25 25 25 27 24 88 24 450 Overloaded Moves 299 | . . . . . . . . . 7 . 33 . 21 14 224 Propulsion Burnouts 1 | . . . . . . . . . . . . . . . 1 Robots Hopped 5 | . . . . . . 3 . . . . . . . . 2 Cave-ins Triggered . | . . . . . . . . . . . . . . . . Exploration Rate (%) 39 | 4 10 50 62 45 23 36 74 33 56 77 33 14 39 21 50 Regions Visited 15 Branch Regions 5 Pre-discovered Areas . | . . . . . . . . . . . . . . . . Known Exits Taken 3 | . . . 1 . . . . 1 . . 1 . . . . Unknown Exits Taken 8 | 1 1 1 . 1 1 . . . . . . 1 1 1 . Scrap Searched 2 | . . 1 . 1 . . . . . . . . . . . Spaces Dug 41 | . . . . . . 4 . 5 20 . 6 1 . 2 3 Terrain Destroyed 42 | . . . . . . 5 . 5 20 . 6 1 . 2 3 Melee 41 | . . . . . . 4 . 5 20 . 6 1 . 2 3 Projectile 1 | . . . . . . 1 . . . . . . . . . AOE . | . . . . . . . . . . . . . . . . Terrain Rammed . | . . . . . . . . . . . . . . . . Walls Destroyed . | . . . . . . . . . . . . . . . . Machines Disabled . | . . . . . . . . . . . . . . . . Actions | -11 -10 -10 -10 -9 -8 -7 -7 -7 -6 -6 -6 -5 -5 -4 -4 --------- Run | Yrd Mat Min Exi Min Mat Fac Was Fac Fac Was Fac Fac Ext Fac Arm Total 11858 | 54 50 511 313 225 317 1606 85 1346 1999 93 1849 535 732 1031 1112 Wait 2086 | . . 283 . . 11 126 1 26 308 2 704 84 45 317 179 Move 9271 | 44 48 223 309 212 255 1392 80 1276 1622 87 1117 431 670 666 839 Hop 4 | . . . . . . 3 . . . . . . . . 1 Pick Up 58 | 4 2 1 . 6 11 8 1 3 3 . 2 2 1 7 7 Fast Attach 62 | 6 . . 2 . 3 11 . 4 7 2 5 8 7 2 5 Attach 35 | . . . . . 4 8 2 . 2 . 1 1 2 6 9 Detach 8 | . . . 2 . 1 1 1 . 1 . . . . . 2 Swap 40 | . . . . 2 6 8 . 4 11 . 2 . 3 2 2 Drop 79 | . . . . . 6 23 . 7 5 2 7 8 2 6 13 Fire 75 | . . 4 . 5 20 20 . 7 12 . 1 . 1 3 2 Melee 128 | . . . . . . 6 . 19 28 . 10 1 1 10 53 Ram . | . . . . . . . . . . . . . . . . Kick . | . . . . . . . . . . . . . . . . Crush . | . . . . . . . . . . . . . . . . Escape Stasis 12 | . . . . . . . . . . . . . . 12 . Rewire . | . . . . . . . . . . . . . . . . Trap . | . . . . . . . . . . . . . . . . Miscellaneous . | . . . . . . . . . . . . . . . . Route ------- -11/Scrapyard -10/Materials -10/Mines -10/Exiles (discovered 2 exits: *Min x2) -9/Mines -8/Materials -7/Factory -7/Waste -7/Factory (discovered 6 exits: *Fac x4 / Low x2) -6/Factory (discovered 6 exits: *Fac x4 / *Low x2) -6/Waste -6/Factory (discovered 6 exits: *Fac x4 / Low x2) -5/Factory -5/Extension -4/Factory -4/Armory History --------- Turn | Location | Event 13 | -11/Scrapyard | Discovered new exit (range 15) 83 | -11/Scrapyard | Entered Materials 99 | -10/Materials | Discovered new exit (range 16) 162 | -10/Materials | Entered Mines 207 | -10/Mines | Assembled infested the area 312 | -10/Mines | Build established: Mutant 807 | -10/Mines | Deemed a non-threat by the Exiles lab entrance 807 | -10/Mines | Discovered new exit (range 5) 814 | -10/Mines | Entered Exiles 815 | -10/Exiles | Identified exit to Mines 853 | -10/Exiles | Met 8R-AWN 882 | -10/Exiles | Met EX-HEX 925 | -10/Exiles | Met EX-BIN 944 | -10/Exiles | Aligned with FarCom system 946 | -10/Exiles | Given EX-Vault access code 982 | -10/Exiles | Opened EX-Vault 992 | -10/Exiles | Found Prototype Device 992 | -10/Exiles | Identified Cloak of Protection 1028 | -10/Exiles | Warned to stay clear of 0b10 Research branches 1076 | -10/Exiles | Met EX-DEC 1402 | -10/Exiles | Left Exiles lab with Cloak of Protection 1402 | -10/Exiles | Entered Mines 1528 | -9/Mines | Received a Rocket Launcher from a helpful Derelict 1669 | -9/Mines | Found a hidden stash of uninstalled traps 1900 | -9/Mines | Discovered new exit (range 6) 1906 | -9/Mines | Entered Materials 1906 | -8/Materials | Evolved 4 slots: Propulsion x2, Utility x2 2332 | -8/Materials | Discovered new exit (range 3) 2413 | -8/Materials | Entered Factory 2413 | -7/Factory | Evolved 2 slots: Propulsion x2 2440 | -7/Factory | Discovered new exit (range 10) 2444 | -7/Factory | Identified exit to Factory 3033 | -7/Factory | Sucked down chute 3033 | -7/Factory | Entered Waste 3035 | -7/Waste | Spotted C-40 Crusher 3042 | -7/Waste | Spotted C-40 Crusher 3047 | -7/Waste | Spotted C-40 Crusher 3048 | -7/Waste | EMP discharged 3049 | -7/Waste | Spotted C-40 Crusher 3050 | -7/Waste | Spotted C-40 Crusher 3053 | -7/Waste | Spotted C-40 Crusher 3055 | -7/Waste | Discovered new exit (range 13) 3058 | -7/Waste | Entered Factory 3276 | -7/Factory | Discovered exit to Factory (range 4) 3457 | -7/Factory | Identified exit to Lower Caves 3468 | -7/Factory | Entered another Factory area 3468 | -6/Factory | Evolved 2 slots: Utility x2 3634 | -6/Factory | Discovered new exit (range 14) 3700 | -6/Factory | Identified exit to Factory 3780 | -6/Factory | Identified exit to Lower Caves 3864 | -6/Factory | Fabricated Cld. VTOL Module? 3917 | -6/Factory | Build established: Scavenger-Scout 3960 | -6/Factory | Fabricated Cld. VTOL Module (x1) 4285 | -6/Factory | Sucked down chute 4285 | -6/Factory | Entered Waste 4289 | -6/Waste | Spotted C-40 Crusher 4291 | -6/Waste | Found Prototype Hackware 4291 | -6/Waste | Identified Exp. System Shield 4296 | -6/Waste | Spotted C-40 Crusher 4300 | -6/Waste | Spotted C-40 Crusher 4303 | -6/Waste | Spotted C-40 Crusher 4304 | -6/Waste | Spotted C-40 Crusher 4307 | -6/Waste | Spotted C-40 Crusher 4309 | -6/Waste | Discovered new exit (range 10) 4311 | -6/Waste | Entered Factory 4375 | -6/Factory | Build established: Hacker-Scout 4605 | -6/Factory | Fabricated Cld. VTOL Module? 4606 | -6/Factory | Fabricated Cld. VTOL Module? 5314 | -6/Factory | Entered another Factory area 5314 | -5/Factory | Evolved 2 slots: Utility x2 5412 | -5/Factory | Fabricated Cld. VTOL Module (x1) 5493 | -5/Factory | Discovered new exit (range 6) 5515 | -5/Factory | Entered Extension 5523 | -5/Extension | Rescued a captive Derelict 5622 | -5/Extension | Spotted B-75 Beast 5627 | -5/Extension | Spotted B-75 Beast 5767 | -5/Extension | Discovered new exit (range 3) 5767 | -5/Extension | Entered Factory 5767 | -4/Factory | Evolved 2 slots: Utility x2 5822 | -4/Factory | Fabricated Cld. VTOL Module (x1) 5964 | -4/Factory | Found Prototype Processor 5964 | -4/Factory | Identified Exp. Melee Analysis Suite 6012 | -4/Factory | Repaired Cld. VTOL Module 6051 | -4/Factory | Repaired Cld. VTOL Module 6054 | -4/Factory | Build established: Hacker-Ninja 6070 | -4/Factory | Adv. Hacking Suite fried by hacking feedback 6301 | -4/Factory | Discovered new exit (range 13) 6305 | -4/Factory | Entered Armory 6446 | -4/Armory | Fabricated Lgt. Particle Reactor? 6468 | -4/Armory | Found Prototype Launcher 6468 | -4/Armory | Identified Tesla Bomb Launcher 6801 | -4/Armory | System corruption reached 10% 6819 | -4/Armory | Core integrity fell below 50% 6831 | -4/Armory | Lost 13 parts (7n5u1w) 6835 | -4/Armory | Core integrity fell below 20% 6845 | -4/Armory | Destroyed by P-70 Sage with Tesla Rifle Last Messages --------------- 06791_ Cld. VTOL Module destroyed. 06791_ Cld. VTOL Module burned out. 06794_ Cld. VTOL Module destroyed. 06794_ Dropped Ionic Axe. 06796_ Acquired 35 matter. 06800_ Imp. System Guard destroyed. 06800_ Exp. System Shield destroyed. 06800_ System corrupted by crushing effect (+2). 06800_ System corrupted by crushing effect (+3). 06800_ Knocked back. 06801_ System corrupted: Component data lost. 06803_ The unstable cave ceiling collapses. 06805_ ALERT: Rogue bot located, Programmers report to Armory Zone 8I. 06809_ ALERT: Security rotation in progress. 06813_ Triangulator severed. 06816_ Imp. Hacking Suite severed. 06819_ P-70 Sage resets C-35 Carver, system corruption cleaned. 06825_ Enh. Optical Array severed. 06829_ 4TPDBUETRFW2I